bitfinex/quotes_SOLUSD_20241118
["timestamp","ask_amount","ask_price","bid_price","bid_amount"]
[1731894085927,16.25576227,238.32,238.25,14.6903]
[1731894086721,4.1951,238.37,238.25,30.94606227]
[1731894086722,16.25576227,238.34,238.25,30.94606227]
[1731894087528,16.25576227,238.26,238.2,14.6934]
[1731894087729,16.25576227,238.24,238.16,14.6959]
[1731894089036,16.25576227,238.26,238.17,16.25576227]
[1731894089226,16.25576227,238.24,238.16,14.6959]
[1731894089556,16.25576227,238.22,238.16,14.6959]
[1731894089925,16.25576227,238.27,238.18,16.25576227]
[1731894090149,16.25576227,238.27,238.16,30.95166227]
[1731894090357,16.25576227,238.32,238.16,30.95166227]
[1731894090358,16.25576227,238.25,238.16,30.95166227]
[1731894091060,16.25576227,238.27,238.16,30.95166227]
[1731894091443,16.25576227,238.25,238.16,30.95166227]
[1731894092555,16.25576227,238.21,238.16,14.6959]
[1731894092730,16.25576227,238.17,238.11,10.4991]
[1731894093754,11.6655,238.24,238.12,0.09367462]
[1731894093755,16.25576227,238.19,238.12,0.09367462]
[1731894093939,16.25576227,238.21,238.13,16.25576227]
[1731894094130,16.25576227,238.23,238.15,0.09367462]
[1731894095043,16.25576227,238.23,238.16,0.12549]
[1731894095548,16.25576227,238.23,238.17,14.6953]
[1731894100061,16.25576227,238.21,238.17,14.6953]
[1731894100363,10.15201562,238.21,238.17,14.6953]
[1731894101335,11.6655,238.29,238.12,10.4987]
[1731894101336,10.15201562,238.19,238.12,10.4987]
[1731894101752,10.15201562,238.19,238.13,0.09367462]
[1731894102062,10.15201562,238.21,238.13,0.09367462]
[1731894102236,10.15201562,238.21,238.12,17.34844104]
[1731894102565,11.6655,238.29,238.12,17.34844104]
[1731894102566,10.15201562,238.23,238.15,10.15201562]
[1731894103132,10.15201562,238.25,238.16,0.09367462]
[1731894103940,10.15201562,238.25,238.17,4.1986]
[1731894104343,10.15201562,238.25,238.17,14.6953]
[1731894105457,4.1962,238.31,238.2,10.15201562]
[1731894105756,11.6655,238.35,238.25,0.21916462]
[1731894105757,10.15201562,238.34,238.25,0.21916462]
[1731894106075,6.48897207,238.39,238.25,0.21916462]
[1731894106076,10.15201562,238.39,238.3,10.15201562]
[1731894106262,10.15201562,238.41,238.32,10.15201562]
[1731894106661,10.15201562,238.39,238.32,10.15201562]
[1731894106976,10.15201562,238.39,238.3,10.15201562]
[1731894107141,10.15201562,238.35,238.26,10.24569024]
[1731894107466,10.15201562,238.35,238.27,14.6891]
[1731894109067,10.15201562,238.31,238.25,4.1971]
[1731894110035,10.15201562,238.31,238.23,0.09367462]
[1731894110243,16.22995797,238.32,238.23,31.01523259]
[1731894110860,16.22995797,238.32,238.25,0.09367462]
[1731894112264,16.22995797,238.32,238.26,4.197]
[1731894113161,16.22995797,238.32,238.25,4.1972]
[1731894115070,16.22995797,238.3,238.23,10.494]
[1731894115277,16.22995797,238.28,238.19,43.62725797]
[1731894115461,16.22995797,238.28,238.21,4.1978]
[1731894115974,16.22995797,238.28,238.2,10.4953]
[1731894116552,16.22995797,238.3,238.21,16.22995797]
[1731894117145,20.42635797,238.3,238.21,20.42785797]
[1731894117347,16.22995797,238.32,238.23,16.22995797]
[1731894117549,16.22995797,238.36,238.27,16.22995797]
[1731894118449,16.22995797,238.36,238.26,0.21916462]
[1731894118765,16.22995797,238.36,238.27,4.1969]
[1731894119153,16.22995797,238.34,238.27,4.1969]
[1731894119859,16.22995797,238.32,238.24,4.1972]
[1731894120177,16.22995797,238.28,238.21,14.6926]
[1731894120550,16.22995797,238.3,238.21,30.92255797]
[1731894121283,16.22995797,238.28,238.21,14.6926]
[1731894121852,4.1961,238.32,238.21,30.92255797]
[1731894122054,16.22995797,238.3,238.21,30.92255797]
[1731894122260,16.22995797,238.32,238.24,0.21916462]
[1731894122571,16.22995797,238.36,238.27,16.22995797]
[1731894122965,16.22995797,238.36,238.28,4.1967]
[1731894123870,16.22995797,238.38,238.29,16.22995797]
[1731894124063,16.22995797,238.4,238.31,16.22995797]
[1731894124396,16.22995797,238.38,238.29,16.22995797]
[1731894125384,16.22995797,238.38,238.3,4.1963]
[1731894125680,16.22995797,238.38,238.3,14.6872]
[1731894125876,16.22995797,238.36,238.28,4.1966]
[1731894126082,16.22995797,238.34,238.26,4.1969]
[1731894126373,16.22995797,238.32,238.26,4.1969]
[1731894126881,16.22995797,238.32,238.26,14.6896]
[1731894127454,4.1948,238.39,238.26,14.6896]
[1731894127455,16.22995797,238.36,238.27,40.22600659]
[1731894127764,16.22995797,238.38,238.3,0.21916462]
[1731894127959,16.22995797,238.4,238.31,16.22995797]
[1731894128786,4.1935,238.46,238.34,0.09367462]
[1731894129078,4.1935,238.46,238.32,28.8159]
[1731894129079,16.22995797,238.39,238.32,28.8159]
[1731894129656,16.22995797,238.39,238.33,14.6854]
[1731894130055,16.22995797,238.41,238.33,14.6854]
[1731894130287,16.22995797,238.43,238.35,16.22995797]
[1731894130573,16.22995797,238.45,238.35,16.22995797]
[1731894130958,16.22995797,238.45,238.36,23.99604862]
[1731894131156,16.22995797,238.45,238.38,23.99604862]
[1731894131361,16.22995797,238.45,238.37,16.22995797]
[1731894131559,16.22995797,238.43,238.36,0.21916462]
[1731894131775,16.22995797,238.41,238.35,4.1954]
[1731894132391,10.13739615,238.41,238.35,4.1954]
[1731894132884,10.13739615,238.39,238.34,10.4892]
[1731894133386,10.13739615,238.39,238.33,4.1957]
[1731894133387,10.13739615,238.35,238.29,10.4912]
[1731894133573,10.13739615,238.32,238.29,10.4912]
[1731894134269,16.22932968,238.32,238.29,10.4912]
[1731894134864,16.22932968,238.32,238.24,14.691]
[1731894137388,16.22932968,238.3,238.24,14.691]
[1731894138563,16.22932968,238.3,238.24,10.4936]
[1731894138970,16.22932968,238.32,238.24,10.4936]
[1731894139183,16.22932968,238.3,238.24,10.4936]
[1731894139694,20.42562968,238.3,238.24,10.4936]
[1731894139876,16.22932968,238.28,238.24,10.4936]
[1731894141767,16.22932968,238.3,238.24,10.4936]
[1731894142463,16.22932968,238.32,238.24,26.72292968]
[1731894142666,16.22932968,238.34,238.26,16.22932968]
[1731894143570,16.22932968,238.34,238.24,16.22932968]
[1731894143769,16.22932968,238.32,238.24,16.22932968]
[1731894144871,16.22932968,238.32,238.25,14.6903]
[1731894145085,16.22932968,238.38,238.3,16.22932968]
[1731894145276,16.22932968,238.4,238.3,16.22932968]
[1731894145478,16.22932968,238.38,238.3,16.22932968]
[1731894145888,16.22932968,238.38,238.28,27.4893]
[1731894145889,16.22932968,238.38,238.28,43.71862968]
[1731894146086,4.1943,238.42,238.28,16.22932968]
[1731894146087,16.22932968,238.36,238.28,16.22932968]
[1731894146494,16.22932968,238.38,238.3,16.22932968]
[1731894146878,16.22932968,238.38,238.29,38.590274]
[1731894148397,16.22932968,238.42,238.32,16.22932968]
[1731894149596,16.22932968,238.42,238.34,16.22932968]
[1731894150176,16.22932968,238.44,238.35,0.09367462]
[1731894150392,16.22932968,238.48,238.38,16.22932968]
[1731894150590,16.22932968,238.48,238.4,16.22932968]
[1731894150906,16.22932968,238.46,238.38,16.22932968]
[1731894152384,16.22932968,238.44,238.36,4.1952]
[1731894152581,16.22932968,238.44,238.36,14.6835]
[1731894153706,16.22932968,238.42,238.36,14.6835]
[1731894154314,16.22932968,238.38,238.36,10.4883]
[1731894154488,16.22932968,238.38,238.34,4.1955]
[1731894154808,0.1,238.51,238.34,4.1955]
[1731894154809,6.83852912,238.55,238.37,21.0486]
[1731894155016,0.4705112,238.57,238.54,16.22932968]
[1731894155310,0.4705112,238.57,238.53,7.25633513]
[1731894155613,16.22932968,238.55,238.47,16.22932968]
[1731894155790,0.4705112,238.57,238.44,23.902374]
[1731894155791,16.22932968,238.53,238.44,23.902374]
[1731894156316,16.22932968,238.53,238.46,4.1935]
[1731894156484,16.69984088,238.57,238.47,16.22932968]
[1731894156680,16.22932968,238.53,238.46,10.4839]
[1731894156978,16.22932968,238.51,238.46,10.4839]
[1731894158302,10.12678479,238.52,238.46,10.4839]
[1731894160105,21.70458479,238.56,238.47,10.12678479]
[1731894161210,21.70458479,238.56,238.48,4.1932]
[1731894161614,10.12678479,238.54,238.48,4.1932]
[1731894162523,21.70458479,238.56,238.47,10.12678479]
[1731894163394,21.70458479,238.56,238.49,10.12678479]
[1731894163597,21.70458479,238.56,238.49,14.31978479]
[1731894164203,21.70458479,238.56,238.49,4.193]
[1731894164595,10.12678479,238.56,238.49,4.193]
[1731894164800,10.12678479,238.54,238.47,4.1932]
[1731894165002,10.12678479,238.54,238.46,10.4839]
[1731894165222,10.12678479,238.52,238.46,10.4839]
[1731894166224,10.12678479,238.52,238.46,14.6774]
[1731894166421,10.12678479,238.5,238.43,10.12678479]
[1731894166625,10.12678479,238.5,238.42,4.1941]
[1731894167291,10.12678479,238.5,238.42,14.6797]
[1731894168423,10.12678479,238.52,238.45,10.12678479]
[1731894168606,14.31898479,238.54,238.47,10.12678479]
[1731894168815,10.12678479,238.52,238.43,10.12678479]
[1731894168999,10.12678479,238.5,238.42,14.6797]
[1731894169822,10.12678479,238.52,238.43,10.12678479]
[1731894170121,4.28607462,238.53,238.45,10.12678479]
[1731894170428,10.12678479,238.52,238.43,10.12678479]
[1731894170802,10.12678479,238.52,238.43,24.80588479]
[1731894171410,10.12678479,238.52,238.45,10.12678479]
[1731894171719,29.1878112,238.57,238.49,10.12678479]
[1731894171914,0.4705112,238.57,238.49,10.12678479]
[1731894172120,4.6621112,238.57,238.49,10.12678479]
[1731894172427,0.4705112,238.57,238.49,10.12678479]
[1731894172801,0.4705112,238.57,238.49,14.31958479]
[1731894172998,0.4705112,238.57,238.56,10.12678479]
[1731894173301,0.4705112,238.57,238.56,44.28143358]
[1731894173716,0.4705112,238.57,238.56,34.15464879]
[1731894174923,0.4705112,238.57,238.56,38.34644879]
[1731894176616,0.4705112,238.57,238.56,4.1918]
[1731894177320,0.4705112,238.57,238.56,14.31858479]
[1731894177927,0.4705112,238.57,238.55,10.4799]
[1731894178220,0.4705112,238.57,238.52,14.31918479]
[1731894178919,0.4705112,238.57,238.5,20.60888479]
[1731894179117,4.6622112,238.57,238.5,20.60888479]
[1731894180054,4.6622112,238.57,238.5,10.12678479]
[1731894180332,4.6622112,238.57,238.37,0.1]
[1731894180333,10.12678479,238.54,238.46,10.12678479]
[1731894182308,14.31898479,238.54,238.46,10.12678479]
[1731894182735,14.31898479,238.54,238.46,14.32018479]
[1731894182939,4.1922,238.54,238.48,10.12678479]
[1731894183637,0.09367462,238.55,238.48,10.12678479]
[1731894183835,0.4705112,238.57,238.5,10.12678479]
[1731894184532,10.12678479,238.54,238.46,20.61068479]
[1731894184744,4.6622112,238.57,238.44,10.12678479]
[1731894184745,0.09367462,238.51,238.44,10.12678479]
[1731894184913,10.12678479,238.54,238.46,10.12678479]
[1731894185112,20.0,238.54,238.48,10.12678479]
[1731894185830,30.12678479,238.54,238.46,10.12678479]
[1731894187023,4.1923,238.53,238.46,10.12678479]
[1731894187330,10.22045941,238.52,238.44,10.12678479]
[1731894187833,0.09367462,238.52,238.44,10.12678479]
[1731894188347,10.22045941,238.52,238.44,10.12678479]
[1731894188837,10.22045941,238.52,238.42,10.12678479]
[1731894189215,0.09367462,238.5,238.42,10.12678479]
[1731894189432,0.09367462,238.5,238.35,10.4886]
[1731894189433,0.09367462,238.44,238.35,10.4886]
[1731894189736,0.12549,238.47,238.32,4.196]
[1731894189737,10.12678479,238.41,238.33,10.12678479]
[1731894190142,50.07538479,238.43,238.35,10.12678479]
[1731894190928,10.12678479,238.41,238.33,10.12678479]
[1731894191227,10.12678479,238.41,238.33,14.32248479]
[1731894191745,39.9486,238.43,238.35,10.12678479]
[1731894191746,50.07538479,238.43,238.35,10.12678479]
[1731894191916,50.07538479,238.49,238.39,10.12678479]
[1731894192237,50.07538479,238.49,238.33,14.6853]
[1731894192238,39.9486,238.49,238.43,10.12678479]
[1731894192426,0.09367462,238.48,238.41,10.12678479]
[1731894193133,4.1933,238.47,238.41,10.12678479]
[1731894193340,4.1933,238.47,238.39,10.12678479]
[1731894193646,10.12678479,238.45,238.35,10.12678479]
[1731894193836,4.1933,238.47,238.35,10.12678479]
[1731894193837,10.12678479,238.43,238.35,10.12678479]
[1731894194014,4.1933,238.47,238.33,10.4896]
[1731894194015,10.12678479,238.41,238.33,10.12678479]
[1731894194217,10.12678479,238.41,238.31,10.12678479]
[1731894194842,0.1,238.46,238.3,4.1962]
[1731894194843,0.09367462,238.4,238.33,10.12678479]
[1731894195523,0.09367462,238.4,238.35,10.12678479]
[1731894195943,0.09367462,238.4,238.39,10.12678479]
[1731894196319,0.09367462,238.4,238.39,16.20959148]
[1731894197040,0.09367462,238.4,238.39,20.40439148]
[1731894197555,0.09367462,238.4,238.37,16.20959148]
[1731894197717,0.09367462,238.4,238.33,36.20959148]
[1731894197922,4.28837462,238.4,238.33,16.20959148]
[1731894198917,23.776884,238.39,238.33,16.20959148]
[1731894199143,16.20959148,238.38,238.31,16.20959148]
[1731894199313,23.776884,238.35,238.27,26.70159148]
[1731894199946,16.20959148,238.32,238.23,16.20959148]
[1731894200239,23.776884,238.31,238.23,16.20959148]
[1731894200441,23.776884,238.29,238.22,10.4944]
[1731894200646,16.20959148,238.28,238.22,10.4944]
[1731894202343,20.40639148,238.28,238.19,16.20959148]
[1731894202748,16.20959148,238.26,238.19,16.20959148]
[1731894203048,46.47479148,238.26,238.17,16.20959148]
[1731894203348,16.20959148,238.24,238.16,10.4967]
[1731894203642,16.20959148,238.22,238.16,10.4967]
[1731894205144,20.40749148,238.22,238.15,16.20959148]
[1731894205346,23.87055862,238.21,238.13,16.20959148]
[1731894206549,16.20959148,238.2,238.13,16.20959148]
[1731894207141,23.776884,238.19,238.11,20.40919148]
[1731894208444,0.09367462,238.15,238.04,10.5021]
[1731894208627,23.87055862,238.15,238.07,16.20959148]
[1731894209334,16.20959148,238.14,238.07,16.20959148]
[1731894209957,23.776884,238.13,238.07,16.20959148]
[1731894210543,23.776884,238.13,238.05,20.41029148]
[1731894210935,0.09367462,238.12,238.05,16.20959148]
[1731894212044,27.976384,238.13,238.05,16.20959148]
[1731894212230,23.776884,238.11,238.05,16.20959148]
[1731894213331,23.776884,238.12,238.07,16.20959148]
[1731894213534,40.11196548,238.14,238.07,16.20959148]
[1731894213751,0.09367462,238.13,238.05,16.20959148]
[1731894214947,23.776884,238.12,238.05,16.20959148]
[1731894215654,23.776884,238.12,238.07,16.20959148]
[1731894216547,23.776884,238.12,238.05,16.20959148]
[1731894218135,23.776884,238.12,238.07,16.20959148]
[1731894218346,23.776884,238.12,238.07,10.15910847]
[1731894218864,10.15910847,238.17,238.09,10.15910847]
[1731894219046,10.15910847,238.21,238.14,10.15910847]
[1731894219355,4.198,238.21,238.14,10.15910847]
[1731894219556,4.1982,238.2,238.14,10.15910847]
[1731894219931,10.15910847,238.23,238.14,10.15910847]
[1731894220460,10.15910847,238.23,238.12,16.24290737]
[1731894220461,16.24290737,238.2,238.12,16.24290737]
[1731894220627,16.24290737,238.2,238.1,16.24290737]
[1731894221136,58.43780737,238.18,238.1,16.24290737]
[1731894221349,0.09367462,238.17,238.07,4.2004]
[1731894221561,23.99604862,238.17,238.08,16.24290737]
[1731894222763,16.24290737,238.16,238.08,16.24290737]
[1731894222936,23.776884,238.15,238.08,16.24290737]
[1731894223437,23.776884,238.17,238.12,16.24290737]
[1731894223639,42.1949,238.18,238.14,16.24290737]
[1731894223949,46.3934,238.18,238.12,16.24290737]
[1731894224643,42.1949,238.18,238.12,16.24290737]
[1731894224839,42.1949,238.18,238.16,16.24290737]
[1731894225032,26.2859,238.25,238.16,16.24290737]
[1731894225234,26.2859,238.25,238.19,16.24290737]
[1731894225429,26.2859,238.25,238.09,35.7006]
[1731894225430,26.2859,238.25,238.17,16.24290737]
[1731894226463,30.4832,238.25,238.17,16.24290737]
[1731894226647,0.09367462,238.24,238.17,16.24290737]
[1731894226854,0.09367462,238.2,238.05,0.25098]
[1731894227045,16.24290737,238.17,238.04,14.7033]
[1731894227253,18.8848,238.15,238.08,16.24290737]
[1731894228353,18.8848,238.15,238.09,4.2]
[1731894228748,18.8848,238.15,238.1,16.24290737]
[1731894229559,18.8848,238.15,238.12,16.24290737]
[1731894231101,18.8848,238.15,238.1,20.44270737]
[1731894231851,31.55745862,238.14,238.08,16.24290737]
[1731894232064,31.463784,238.14,238.06,20.44330737]
[1731894232284,7.6869,238.14,238.08,16.24290737]
[1731894232450,7.6869,238.14,238.1,16.24290737]
[1731894233961,7.6869,238.14,238.08,16.24290737]
[1731894234174,23.776884,238.13,238.07,20.0]
[1731894234359,23.776884,238.13,238.06,30.94480737]
[1731894236486,23.776884,238.13,238.04,16.24290737]
[1731894236487,0.09367462,238.12,238.04,16.24290737]
[1731894236659,0.09367462,238.12,238.04,20.44380737]
[1731894236976,0.09367462,238.12,238.04,16.24290737]
[1731894237367,0.09367462,238.12,238.04,20.44380737]
[1731894238867,0.09367462,238.12,238.06,16.24290737]
[1731894239065,23.776884,238.13,238.06,16.24290737]
[1731894239275,7.6869,238.14,238.1,16.24290737]
[1731894239582,7.6869,238.14,238.12,16.24290737]
[1731894239780,7.6869,238.14,238.1,16.24290737]
[1731894240660,23.776884,238.13,238.08,16.24290737]
[1731894241585,23.776884,238.13,238.08,20.44300737]
[1731894242368,23.776884,238.13,238.09,10.1572762]
[1731894243680,23.776884,238.13,238.07,10.1572762]
[1731894243871,23.776884,238.13,238.05,20.6587762]
[1731894244179,0.09367462,238.12,238.05,20.6587762]
[1731894245073,0.09367462,238.1,238.03,10.1572762]
[1731894245599,23.776884,238.12,238.05,10.1572762]
[1731894245760,23.776884,238.12,238.05,14.3578762]
[1731894246784,23.776884,238.11,238.05,14.3578762]
[1731894248512,23.776884,238.11,238.07,10.1572762]
[1731894248785,23.776884,238.13,238.07,10.1572762]
[1731894249083,0.09367462,238.12,238.07,10.1572762]
[1731894249894,27.976384,238.13,238.07,10.1572762]
[1731894250060,7.6869,238.14,238.11,10.1572762]
[1731894250265,7.6869,238.14,238.13,10.1572762]
[1731894250465,18.8848,238.15,238.13,10.1572762]
[1731894250676,7.2257,238.2,238.13,10.1572762]
[1731894250914,7.2257,238.2,238.18,10.1572762]
[1731894252793,23.776884,238.21,238.18,10.1572762]
[1731894254782,18.5002,238.22,238.2,10.1572762]
[1731894254962,7.2257,238.25,238.2,10.1572762]
[1731894255163,23.776884,238.24,238.2,10.1572762]
[1731894255968,23.776884,238.24,238.18,4.1983]
[1731894256188,23.776884,238.24,238.19,10.1572762]
[1731894257972,23.776884,238.24,238.08,10.2572762]
[1731894257973,23.87055862,238.21,238.12,10.4986]
[1731894258290,10.1572762,238.2,238.12,10.4986]
[1731894258462,23.776884,238.19,238.12,10.4986]
[1731894258867,23.776884,238.17,238.09,14.3571762]
[1731894260599,7.3257,238.25,238.13,10.1572762]
[1731894260600,14.3550762,238.22,238.13,10.1572762]
[1731894260761,23.776884,238.21,238.15,10.1572762]
[1731894261782,23.776884,238.21,238.15,14.3562762]
[1731894262374,23.776884,238.21,238.15,4.199]
[1731894262574,23.776884,238.21,238.15,14.3562762]
[1731894264194,23.776884,238.24,238.17,10.1572762]
[1731894264489,23.776884,238.24,238.19,10.1572762]
[1731894265372,27.974384,238.24,238.17,14.3557762]
[1731894266490,38.1316602,238.24,238.15,20.6547762]
[1731894266901,38.1316602,238.24,238.15,24.8537762]
[1731894267771,27.974384,238.24,238.17,10.1572762]
[1731894267974,27.974384,238.24,238.18,4.1985]
[1731894268189,23.776884,238.24,238.19,10.1572762]
[1731894269887,23.776884,238.24,238.17,10.1572762]
[1731894270122,27.974384,238.24,238.17,10.1572762]
[1731894270397,10.1572762,238.23,238.15,10.1572762]
[1731894270692,27.974384,238.24,238.15,10.1572762]
[1731894271173,27.974384,238.24,238.11,20.0]
[1731894271174,10.1572762,238.21,238.11,20.0]
[1731894271492,28.074384,238.24,238.11,20.0]
[1731894271493,10.1572762,238.19,238.11,20.0]
[1731894271677,10.1572762,238.19,238.1,10.1572762]
[1731894271873,0.09367462,238.14,238.05,14.7026]
[1731894272086,23.87055862,238.14,238.05,24.8598762]
[1731894272976,28.06975862,238.14,238.05,24.8598762]
[1731894274404,14.3566762,238.13,238.05,24.8598762]
[1731894274581,23.776884,238.12,238.05,24.8598762]
[1731894275383,10.25095082,238.11,238.04,20.0]
[1731894275602,23.776884,238.1,238.04,20.0]
[1731894276380,23.776884,238.1,238.03,10.1572762]
[1731894276598,27.976784,238.1,238.01,14.3585762]
[1731894276799,23.776884,238.08,238.01,14.3585762]
[1731894277498,23.776884,238.06,238.0,10.5041]
[1731894277690,42.249784,238.06,238.0,10.5041]
[1731894279404,18.4729,238.06,238.03,10.1572762]
[1731894279595,4.1998,238.11,238.0,14.7057]
[1731894279903,4.1998,238.11,238.04,10.1572762]
[1731894280285,14.3570762,238.11,238.04,10.1572762]
[1731894280484,0.09367462,238.08,238.02,10.1572762]
[1731894281009,23.87055862,238.08,238.02,10.1572762]
[1731894281609,23.776884,238.09,238.02,14.3584762]
[1731894281805,23.776884,238.11,238.06,10.1572762]
[1731894282006,23.776884,238.11,238.08,10.1572762]
[1731894282720,18.4729,238.12,238.08,14.3574762]
[1731894282907,18.4729,238.12,238.1,10.1572762]
[1731894283115,7.1873,238.15,238.1,10.1572762]
[1731894284192,23.776884,238.14,238.1,10.1572762]
[1731894284595,7.1873,238.15,238.1,10.1572762]
[1731894284596,7.1873,238.15,238.12,10.1572762]
[1731894285913,23.776884,238.14,238.08,10.1572762]
[1731894286303,23.776884,238.14,238.08,24.8580762]
[1731894288099,0.09367462,238.13,238.06,4.2005]
[1731894288396,23.776884,238.12,238.04,14.3581762]
[1731894290096,23.776884,238.14,238.1,10.1572762]
[1731894290317,23.776884,238.14,238.12,10.1572762]
[1731894291410,18.4729,238.17,238.13,4.1993]
[1731894292114,18.4729,238.17,238.12,10.1572762]
[1731894292414,18.4729,238.17,238.12,14.3566762]
[1731894292659,23.776884,238.16,238.12,14.3566762]
[1731894293003,23.776884,238.16,238.12,24.8555762]
[1731894293216,23.776884,238.19,238.14,10.1572762]
[1731894293402,7.724,238.2,238.14,14.3562762]
[1731894293912,7.724,238.2,238.14,24.8542762]
[1731894294415,18.3288,238.22,238.14,24.8542762]
[1731894294416,18.3288,238.22,238.16,10.1572762]
[1731894294916,18.3288,238.22,238.18,10.1572762]
[1731894295704,18.3288,238.22,238.18,14.3556762]
[1731894295910,7.724,238.25,238.2,10.1572762]
[1731894296093,18.3288,238.28,238.2,10.1572762]
[1731894297223,23.776884,238.27,238.2,10.1572762]
[1731894297413,23.776884,238.27,238.2,14.3553762]
[1731894297619,18.3288,238.28,238.22,10.1572762]
[1731894298789,23.776884,238.27,238.22,14.3549762]
[1731894299221,18.3288,238.28,238.24,10.1572762]
[1731894299897,7.724,238.31,238.24,10.1572762]
[1731894300208,18.3288,238.33,238.26,10.1572762]
[1731894300401,18.3288,238.33,238.22,14.6922]
[1731894300402,32.6819762,238.33,238.24,10.1572762]
[1731894300795,32.6819762,238.33,238.24,14.3546762]
[1731894301222,22.5247,238.33,238.26,10.1572762]
[1731894301410,18.3288,238.33,238.26,10.1572762]
[1731894301822,23.776884,238.33,238.27,20.0]
[1731894302114,15.06079231,238.37,238.3,10.1572762]
[1731894302115,7.724,238.37,238.3,10.1572762]
[1731894302714,18.3288,238.39,238.32,10.1572762]
[1731894302916,18.3288,238.39,238.33,4.1958]
[1731894303503,18.3288,238.39,238.34,10.1572762]
[1731894306730,34.02783482,238.38,238.3,14.3535762]
[1731894306913,23.776884,238.35,238.28,10.4916]
[1731894307107,23.776884,238.35,238.28,14.6883]
[1731894307306,23.776884,238.35,238.28,24.8455762]
[1731894307605,23.776884,238.35,238.2,10.1572762]
[1731894307606,23.776884,238.29,238.22,10.4942]
[1731894307837,23.776884,238.27,238.22,10.4942]
[1731894308041,23.776884,238.27,238.22,10.1572762]
[1731894308231,23.776884,238.28,238.2,20.6525762]
[1731894308532,10.1572762,238.25,238.18,10.1572762]
[1731894308714,23.776884,238.24,238.18,10.1572762]
[1731894309083,23.87055862,238.26,238.18,10.1572762]
[1731894310214,27.974084,238.26,238.18,10.1572762]
[1731894310413,23.776884,238.27,238.2,10.1572762]
[1731894310719,33.9341602,238.27,238.18,24.8519762]
[1731894310922,23.776884,238.27,238.22,10.1572762]
[1731894311110,7.4853,238.32,238.24,10.1572762]
[1731894311316,7.4853,238.32,238.28,10.1572762]
[1731894312324,23.776884,238.31,238.28,16.22449731]
[1731894314025,7.4853,238.32,238.28,20.42109731]
[1731894314225,7.4853,238.32,238.19,0.25098]
[1731894314226,0.09367462,238.3,238.24,16.22449731]
[1731894314418,23.776884,238.28,238.21,20.0]
[1731894314614,23.776884,238.28,238.2,16.22449731]
[1731894315819,27.973584,238.28,238.2,16.22449731]
[1731894316011,23.776884,238.24,238.18,10.4961]
[1731894316214,16.31817193,238.23,238.16,16.22449731]
[1731894316509,23.776884,238.22,238.14,16.22449731]
[1731894316918,23.70979731,238.21,238.13,4.1992]
[1731894317212,23.776884,238.2,238.13,4.1992]
[1731894317527,23.776884,238.2,238.13,14.6976]
[1731894317737,23.776884,238.2,238.14,20.0]
[1731894318121,23.776884,238.2,238.12,16.22449731]
[1731894318338,16.22449731,238.19,238.12,16.22449731]
[1731894318634,7.4853,238.21,238.12,16.22449731]
[1731894318635,23.776884,238.18,238.12,16.22449731]
[1731894318834,23.776884,238.2,238.14,16.22449731]
[1731894319260,19.4319,238.23,238.18,16.22449731]
[1731894319447,7.4853,238.27,238.22,16.22449731]
[1731894319616,7.4853,238.33,238.26,16.22449731]
[1731894319812,11.6812,238.33,238.26,16.22449731]
[1731894320442,0.09367462,238.32,238.24,16.22449731]
[1731894320622,11.6812,238.33,238.26,16.22449731]
[1731894321043,23.776884,238.32,238.26,16.22449731]
[1731894321757,23.776884,238.32,238.26,20.42149731]
[1731894322044,0.09367462,238.31,238.24,16.22449731]
[1731894322222,23.776884,238.3,238.23,20.0]
[1731894322722,23.776884,238.3,238.22,26.71859731]
[1731894322846,16.31817193,238.29,238.2,20.42249731]
[1731894323041,23.70979731,238.33,238.24,16.22449731]
[1731894323233,7.4853,238.33,238.28,16.22449731]
[1731894323481,7.4853,238.33,238.3,16.22449731]
[1731894323638,19.4319,238.34,238.3,16.22449731]
[1731894323842,19.4319,238.34,238.32,16.22449731]
[1731894324055,26.8291,238.39,238.32,16.22449731]
[1731894324932,23.776884,238.38,238.32,16.22449731]
[1731894325161,23.776884,238.38,238.29,10.4911]
[1731894325340,23.776884,238.38,238.29,30.91199731]
[1731894325962,23.776884,238.35,238.29,10.4911]
[1731894326260,23.776884,238.35,238.27,20.42129731]
[1731894327266,16.22449731,238.32,238.24,10.4935]
[1731894327558,23.776884,238.31,238.24,14.6907]
[1731894328663,16.22449731,238.32,238.25,16.22449731]
[1731894328664,23.776884,238.32,238.25,16.22449731]
[1731894329536,23.776884,238.32,238.25,20.42169731]
[1731894329937,23.776884,238.32,238.23,26.71839731]
[1731894329938,4.1962,238.31,238.23,26.71839731]